[Event "Esbjerg Efterår 2024 - Esbjergmesterskabet"]
[Site "Esbjerg, Denmark"]
[Date "2024.10.19"]
[Round "5.1"]
[White "Jacobsen, Mikkel Manosri"]
[Black "Medhus, Vitus Bondo"]
[Result "1-0"]
[TimeControl "1.-3. 20 min + 5 sek, 4.-7. 90 min + 30 sek + 15 min efter 40 træk"]
[WhiteElo "2350"]
[BlackElo "2246"]

1. c4 {[%clk 01:28:39]} {[%emt 00:02:20]} e5 {[%clk 01:30:49]} {[%emt
00:00:11]} 2. g3 {[%clk 01:29:06]} {[%emt 00:00:03]} Nf6 {[%clk 01:31:13]}
{[%emt 00:00:06]} 3. Bg2 {[%clk 01:29:32]} {[%emt 00:00:04]} d5 {[%clk
01:31:37]} {[%emt 00:00:06]} 4. cxd5 {[%clk 01:29:59]} {[%emt 00:00:04]} Nxd5
{[%clk 01:32:00]} {[%emt 00:00:07]} 5. Nf3 {[%clk 01:30:24]} {[%emt 00:00:05]}
Nc6 {[%clk 01:32:16]} {[%emt 00:00:12]} 6. O-O {[%clk 01:30:48]} {[%emt
00:00:07]} Be7 {[%clk 01:32:32]} {[%emt 00:00:15]} 7. Nc3 {[%clk 01:31:08]}
{[%emt 00:00:10]} Nb6 {[%clk 01:32:54]} {[%emt 00:00:08]} 8. a3 {[%clk
01:31:29]} {[%emt 00:00:10]} O-O {[%clk 01:32:14]} {[%emt 00:01:09]} 9. d3
{[%clk 01:31:52]} {[%emt 00:00:07]} Be6 {[%clk 01:32:28]} {[%emt 00:00:16]} 10.
Be3 {[%clk 01:32:16]} {[%emt 00:00:06]} f6 {[%clk 01:26:01]} {[%emt 00:06:58]}
11. Rc1 {[%clk 01:27:30]} {[%emt 00:05:16]} Nd5 {[%clk 01:20:06]} {[%emt
00:06:25]} 12. Nxd5 {[%clk 01:24:37]} {[%emt 00:03:23]} Bxd5 {[%clk 01:20:17]}
{[%emt 00:00:18]} 13. Qa4 {[%clk 01:21:19]} {[%emt 00:03:49]} Qe8 {[%clk
01:08:52]} {[%emt 00:11:55]} 14. Qb5 {[%clk 01:17:38]} {[%emt 00:04:10]} Rd8
{[%clk 01:09:10]} {[%emt 00:00:12]} 15. Rfe1 {[%clk 01:09:58]} {[%emt
00:08:10]} a6 {[%clk 00:30:44]} {[%emt 00:38:57]} 16. Qxb7 {[%clk 01:08:06]}
{[%emt 00:02:21]} Nd4 {[%clk 00:29:31]} {[%emt 00:01:43]} 17. Qxc7 {[%clk
01:07:48]} {[%emt 00:00:48]} Nb3 {[%clk 00:29:33]} {[%emt 00:00:28]} 18. Rc3
{[%clk 00:57:58]} {[%emt 00:10:20]} Rd7 {[%clk 00:27:08]} {[%emt 00:02:56]} 19.
Qb6 {[%clk 00:54:25]} {[%emt 00:04:03]} Qa8 {[%clk 00:25:20]} {[%emt 00:02:17]}
20. Nxe5 {[%clk 00:48:17]} {[%emt 00:06:38]} fxe5 {[%clk 00:23:31]} {[%emt
00:02:19]} 21. Bxd5+ {[%clk 00:48:05]} {[%emt 00:00:42]} Rxd5 {[%clk 00:23:54]}
{[%emt 00:00:07]} 22. Qxb3 {[%clk 00:48:24]} {[%emt 00:00:12]} Kh8 {[%clk
00:24:12]} {[%emt 00:00:12]} 23. Rec1 {[%clk 00:48:00]} {[%emt 00:00:53]} Bh4
{[%clk 00:23:42]} {[%emt 00:01:00]} 24. Rc8 {[%clk 00:46:34]} {[%emt 00:01:56]}
Rxc8 {[%clk 00:24:00]} {[%emt 00:00:12]} 25. Rxc8+ {[%clk 00:46:59]} {[%emt
00:00:05]} Qxc8 {[%clk 00:24:23]} {[%emt 00:00:07]} 26. Qxd5 {[%clk 00:47:24]}
{[%emt 00:00:05]} Bf6 {[%clk 00:24:41]} {[%emt 00:00:13]} 27. b4 {[%clk
00:44:59]} {[%emt 00:02:55]} h5 {[%clk 00:25:04]} {[%emt 00:00:07]} 28. Bc5
{[%clk 00:44:02]} {[%emt 00:01:27]} h4 {[%clk 00:25:24]} {[%emt 00:00:10]} 29.
a4 {[%clk 00:43:42]} {[%emt 00:00:50]} Qg4 {[%clk 00:25:44]} {[%emt 00:00:09]}
30. Qa8+ {[%clk 00:43:54]} {[%emt 00:00:18]} Kh7 {[%clk 00:26:02]} {[%emt
00:00:12]} 31. Qe4+ {[%clk 00:44:19]} {[%emt 00:00:05]} 1-0

[Event "Esbjerg Efterår 2024 - Esbjergmesterskabet"]
[Site "Esbjerg, Denmark"]
[Date "2024.10.19"]
[Round "5.2"]
[White "Løftgaard, Mikkel Vinh"]
[Black "Rossen, Claus"]
[Result "1-0"]
[TimeControl "1.-3. 20 min + 5 sek, 4.-7. 90 min + 30 sek + 15 min efter 40 træk"]
[WhiteElo "2209"]
[BlackElo "2072"]

1. e4 {[%clk 01:30:16]} {[%emt 00:00:44]} g6 {[%clk 01:30:31]} {[%emt
00:00:29]} 2. d4 {[%clk 01:29:55]} {[%emt 00:00:51]} Bg7 {[%clk 01:30:55]}
{[%emt 00:00:06]} 3. h4 {[%clk 01:30:21]} {[%emt 00:00:04]} c5 {[%clk
01:30:49]} {[%emt 00:00:37]} 4. c3 {[%clk 01:30:16]} {[%emt 00:00:35]} d5
{[%clk 01:30:20]} {[%emt 00:00:58]} 5. e5 {[%clk 01:30:30]} {[%emt 00:00:17]}
h5 {[%clk 01:30:44]} {[%emt 00:00:06]} 6. Nf3 {[%clk 01:30:30]} {[%emt
00:00:30]} Bg4 {[%clk 01:29:29]} {[%emt 00:01:44]} 7. Be2 {[%clk 01:30:45]}
{[%emt 00:00:15]} e6 {[%clk 01:27:55]} {[%emt 00:02:04]} 8. Bg5 {[%clk
01:28:34]} {[%emt 00:02:41]} Qb6 {[%clk 01:28:08]} {[%emt 00:00:17]} 9. Nbd2
{[%clk 01:28:35]} {[%emt 00:00:29]} Nc6 {[%clk 01:28:20]} {[%emt 00:00:19]} 10.
Be3 {[%clk 01:27:47]} {[%emt 00:01:18]} cxd4 {[%clk 01:25:02]} {[%emt
00:03:48]} 11. Nxd4 {[%clk 01:24:06]} {[%emt 00:04:11]} Bxe2 {[%clk 01:25:23]}
{[%emt 00:00:08]} 12. Qxe2 {[%clk 01:24:29]} {[%emt 00:00:07]} Qd8 {[%clk
01:15:34]} {[%emt 00:10:19]} 13. N2b3 {[%clk 01:19:21]} {[%emt 00:05:39]} Nxe5
{[%clk 01:09:23]} {[%emt 00:06:41]} 14. Nc5 {[%clk 01:19:20]} {[%emt 00:00:31]}
Qb6 {[%clk 01:05:35]} {[%emt 00:04:18]} 15. Nb5 {[%clk 01:13:31]} {[%emt
00:06:19]} Nc4 {[%clk 00:59:06]} {[%emt 00:06:59]} 16. Nxe6 {[%clk 01:12:48]}
{[%emt 00:01:13]} Nxe3 {[%clk 00:58:47]} {[%emt 00:00:49]} 17. Nec7+ {[%clk
01:13:09]} {[%emt 00:00:10]} Kf8 {[%clk 00:57:33]} {[%emt 00:01:44]} 18. Nxa8
{[%clk 01:13:29]} {[%emt 00:00:10]} Nxg2+ {[%clk 00:57:49]} {[%emt 00:00:14]}
19. Kf1 {[%clk 01:13:57]} {[%emt 00:00:02]} Nf4 {[%clk 00:58:04]} {[%emt
00:00:15]} 20. Nxb6 {[%clk 01:14:23]} {[%emt 00:00:04]} Nxe2 {[%clk 00:58:30]}
{[%emt 00:00:04]} 21. Nxd5 {[%clk 01:14:39]} {[%emt 00:00:14]} a6 {[%clk
00:55:34]} {[%emt 00:03:26]} 22. Nbc7 {[%clk 01:15:00]} {[%emt 00:00:09]} 1-0

[Event "Esbjerg Efterår 2024 - Esbjergmesterskabet"]
[Site "Esbjerg, Denmark"]
[Date "2024.10.19"]
[Round "5.3"]
[White "Perets, Dmytro"]
[Black "Guindy, Esmat Susanne"]
[Result "1-0"]
[TimeControl "1.-3. 20 min + 5 sek, 4.-7. 90 min + 30 sek + 15 min efter 40 træk"]
[WhiteElo "2152"]
[BlackElo "2025"]

1. e4 {[%clk 01:30:56]} {[%emt 00:00:03]} e6 {[%clk 01:30:53]} {[%emt
00:00:07]} 2. d3 {[%clk 01:31:22]} {[%emt 00:00:05]} d5 {[%clk 01:30:56]}
{[%emt 00:00:26]} 3. Nd2 {[%clk 01:31:47]} {[%emt 00:00:05]} Nf6 {[%clk
01:30:16]} {[%emt 00:01:09]} 4. Ngf3 {[%clk 01:32:08]} {[%emt 00:00:10]} c5
{[%clk 01:30:14]} {[%emt 00:00:33]} 5. g3 {[%clk 01:32:34]} {[%emt 00:00:04]}
Nc6 {[%clk 01:29:57]} {[%emt 00:00:46]} 6. Bg2 {[%clk 01:32:59]} {[%emt
00:00:05]} b6 {[%clk 01:28:27]} {[%emt 00:02:00]} 7. O-O {[%clk 01:33:23]}
{[%emt 00:00:05]} Be7 {[%clk 01:26:03]} {[%emt 00:02:54]} 8. Re1 {[%clk
01:33:50]} {[%emt 00:00:04]} O-O {[%clk 01:24:34]} {[%emt 00:01:59]} 9. e5
{[%clk 01:34:14]} {[%emt 00:00:06]} Nd7 {[%clk 01:24:33]} {[%emt 00:00:30]} 10.
Nf1 {[%clk 01:34:42]} {[%emt 00:00:03]} Bb7 {[%clk 01:17:58]} {[%emt 00:07:05]}
11. h4 {[%clk 01:35:06]} {[%emt 00:00:06]} h6 {[%clk 01:17:32]} {[%emt
00:00:56]} 12. Bf4 {[%clk 01:31:20]} {[%emt 00:04:16]} Re8 {[%clk 01:14:10]}
{[%emt 00:03:52]} 13. N1h2 {[%clk 01:30:36]} {[%emt 00:01:13]} f5 {[%clk
01:12:19]} {[%emt 00:02:22]} 14. exf6 {[%clk 01:31:01]} {[%emt 00:00:05]} Bxf6
{[%clk 01:12:30]} {[%emt 00:00:18]} 15. c3 {[%clk 01:26:53]} {[%emt 00:04:40]}
e5 {[%clk 01:10:31]} {[%emt 00:02:28]} 16. Bc1 {[%clk 01:22:54]} {[%emt
00:04:30]} Qc7 {[%clk 01:04:17]} {[%emt 00:06:44]} 17. Ng4 {[%clk 01:19:11]}
{[%emt 00:04:13]} Rad8 {[%clk 01:01:43]} {[%emt 00:03:03]} 18. Bxh6 {[%clk
01:17:09]} {[%emt 00:02:33]} gxh6 {[%clk 01:00:45]} {[%emt 00:01:28]} 19. Nxh6+
{[%clk 01:17:35]} {[%emt 00:00:04]} Kf8 {[%clk 00:52:27]} {[%emt 00:08:47]} 20.
Ng5 {[%clk 01:13:28]} {[%emt 00:04:38]} Ndb8 {[%clk 00:37:28]} {[%emt
00:15:29]} 21. Qf3 {[%clk 01:05:44]} {[%emt 00:08:15]} Kg7 {[%clk 00:32:32]}
{[%emt 00:05:26]} 22. Nf5+ {[%clk 01:03:55]} {[%emt 00:02:18]} Kf8 {[%clk
00:32:17]} {[%emt 00:00:45]} 23. Qh5 {[%clk 01:03:16]} {[%emt 00:01:10]} Rd7
{[%clk 00:28:40]} {[%emt 00:04:07]} 24. Bxd5 {[%clk 01:01:46]} {[%emt
00:02:00]} Nd8 {[%clk 00:28:06]} {[%emt 00:01:03]} 25. Qh6+ {[%clk 01:01:58]}
{[%emt 00:00:19]} Bg7 {[%clk 00:28:23]} {[%emt 00:00:13]} 26. Nh7# {[%clk
01:02:27]} {[%emt 00:00:02]} 1-0

[Event "Esbjerg Efterår 2024 - Esbjergmesterskabet"]
[Site "Esbjerg, Denmark"]
[Date "2024.10.19"]
[Round "5.4"]
[White "Iversen, Tobias"]
[Black "Hansen, Lars"]
[Result "0-1"]
[TimeControl "1.-3. 20 min + 5 sek, 4.-7. 90 min + 30 sek + 15 min efter 40 træk"]
[WhiteElo "1936"]
[BlackElo "2203"]

1. Nf3 {[%clk 01:30:30]} {[%emt 01:01:22]} Nf6 {[%clk 01:26:50]} {[%emt
00:04:14]} 2. g3 {[%clk 01:30:46]} {[%emt 00:00:14]} d5 {[%clk 01:25:52]}
{[%emt 00:01:28]} 3. Bg2 {[%clk 01:29:29]} {[%emt 00:01:47]} c6 {[%clk
01:22:29]} {[%emt 00:03:53]} 4. O-O {[%clk 01:27:34]} {[%emt 00:02:25]} Bg4
{[%clk 01:22:55]} {[%emt 00:00:04]} 5. d4 {[%clk 01:27:13]} {[%emt 00:00:50]}
e6 {[%clk 01:23:09]} {[%emt 00:00:16]} 6. Nbd2 {[%clk 01:25:36]} {[%emt
00:02:07]} Nbd7 {[%clk 01:23:21]} {[%emt 00:00:18]} 7. c4 {[%clk 01:24:25]}
{[%emt 00:01:42]} Be7 {[%clk 01:23:25]} {[%emt 00:00:25]} 8. b3 {[%clk
01:22:31]} {[%emt 00:02:25]} O-O {[%clk 01:23:48]} {[%emt 00:00:07]} 9. Bb2
{[%clk 01:22:23]} {[%emt 00:00:39]} Bh5 {[%clk 01:24:00]} {[%emt 00:00:18]} 10.
Qe1 {[%clk 01:15:29]} {[%emt 00:07:24]} Ne4 {[%clk 01:23:22]} {[%emt 00:01:08]}
11. Nxe4 {[%clk 01:08:58]} {[%emt 00:07:00]} dxe4 {[%clk 01:23:49]} {[%emt
00:00:04]} 12. Nd2 {[%clk 01:04:25]} {[%emt 00:05:03]} f5 {[%clk 01:22:22]}
{[%emt 00:01:57]} 13. e3 {[%emt 00:19:27]} Bb4 {[%clk 01:04:02]} 14. a3 {[%clk
00:49:34]} {[%emt 00:15:13]} Bxd2 {[%clk 01:04:12]} {[%emt 00:00:20]} 15. Qxd2
{[%clk 00:50:02]} {[%emt 00:00:01]} Ne5 {[%clk 01:04:13]} {[%emt 00:00:31]} 16.
Qc3 {[%clk 00:42:37]} {[%emt 00:07:55]} Nf3+ {[%clk 01:01:50]} {[%emt
00:02:53]} 17. Bxf3 {[%clk 00:27:20]} {[%emt 00:15:47]} Bxf3 {[%clk 01:02:15]}
{[%emt 00:00:05]} 18. d5 {[%clk 00:27:42]} {[%emt 00:00:08]} Rf6 {[%clk
01:02:23]} {[%emt 00:00:21]} 19. dxe6 {[%clk 00:22:35]} {[%emt 00:05:37]} Rg6
{[%clk 00:50:18]} {[%emt 00:12:34]} 20. Qe5 {[%clk 00:19:24]} {[%emt 00:03:43]}
Qg5 {[%clk 00:49:16]} {[%emt 00:01:32]} 0-1

[Event "Esbjerg Efterår 2024 - Esbjergmesterskabet"]
[Site "Esbjerg, Denmark"]
[Date "2024.10.19"]
[Round "5.5"]
[White "Bønnelykke, Ole"]
[Black "Saravana, Vedant Kumar"]
[Result "1/2-1/2"]
[TimeControl "1.-3. 20 min + 5 sek, 4.-7. 90 min + 30 sek + 15 min efter 40 træk"]
[WhiteElo "1988"]
[BlackElo "2115"]

1. Nf3 {[%clk 01:30:54]} {[%emt 00:00:05]} d5 {[%clk 01:29:54]} {[%emt
00:01:07]} 2. g3 {[%clk 01:31:08]} {[%emt 00:00:15]} Nf6 {[%clk 01:29:09]}
{[%emt 00:01:16]} 3. Bg2 {[%clk 01:31:21]} {[%emt 00:00:17]} c5 {[%clk
01:29:09]} {[%emt 00:00:30]} 4. O-O {[%clk 01:31:01]} {[%emt 00:00:49]} Nc6
{[%clk 01:29:13]} {[%emt 00:00:26]} 5. d3 {[%clk 01:31:12]} {[%emt 00:00:19]}
e5 {[%clk 01:26:28]} {[%emt 00:03:15]} 6. Nc3 {[%clk 01:29:31]} {[%emt
00:02:11]} h6 {[%clk 01:26:10]} {[%emt 00:00:48]} 7. e4 {[%clk 01:29:26]}
{[%emt 00:00:35]} dxe4 {[%clk 01:10:59]} {[%emt 00:15:42]} 8. dxe4 {[%clk
01:23:55]} {[%emt 00:06:01]} Bg4 {[%clk 01:10:45]} {[%emt 00:00:44]} 9. h3
{[%clk 01:23:08]} {[%emt 00:01:17]} Qxd1 {[%clk 01:10:08]} {[%emt 00:01:08]} 10.
Rxd1 {[%clk 01:21:07]} {[%emt 00:02:30]} Bxf3 {[%clk 01:10:06]} {[%emt
00:00:32]} 11. Bxf3 {[%clk 01:21:28]} {[%emt 00:00:09]} Nd4 {[%clk 01:10:33]}
{[%emt 00:00:04]} 12. Bg2 {[%clk 01:20:07]} {[%emt 00:01:51]} Nxc2 {[%clk
01:10:04]} {[%emt 00:00:59]} 13. Rb1 {[%clk 01:19:12]} {[%emt 00:01:24]} Rd8
{[%clk 01:02:55]} {[%emt 00:07:39]} 14. Bd2 {[%clk 01:12:50]} {[%emt 00:06:52]}
Bd6 {[%clk 00:58:30]} {[%emt 00:04:56]} 15. g4 {[%clk 01:07:59]} {[%emt
00:05:21]} g5 {[%clk 00:41:34]} {[%emt 00:17:26]} 16. Ne2 {[%clk 00:59:10]}
{[%emt 00:09:20]} Nd4 {[%clk 00:39:20]} {[%emt 00:02:44]} 17. Ng3 {[%clk
00:58:59]} {[%emt 00:00:40]} O-O {[%clk 00:35:18]} {[%emt 00:04:33]} 18. Bc3
{[%clk 00:54:14]} {[%emt 00:05:15]} Kh7 {[%clk 00:30:20]} {[%emt 00:05:28]} 19.
f3 {[%clk 00:51:07]} {[%emt 00:03:38]} b5 {[%clk 00:28:53]} {[%emt 00:01:57]}
20. b3 {[%clk 00:48:19]} {[%emt 00:03:18]} Nd7 {[%clk 00:22:41]} {[%emt
00:06:41]} 21. Kf2 {[%clk 00:46:32]} {[%emt 00:02:17]} Nb6 {[%clk 00:22:28]}
{[%emt 00:00:42]} 22. Rh1 {[%clk 00:45:10]} {[%emt 00:01:53]} Kg6 {[%clk
00:17:11]} {[%emt 00:05:48]} 23. h4 {[%clk 00:43:44]} {[%emt 00:01:56]} Rh8
{[%clk 00:16:21]} {[%emt 00:01:19]} 24. Rbd1 {[%clk 00:42:08]} {[%emt
00:02:06]} c4 {[%clk 00:11:25]} {[%emt 00:05:27]} 25. Rh3 {[%clk 00:35:52]}
{[%emt 00:06:45]} b4 {[%clk 00:10:00]} {[%emt 00:01:56]} 26. Bxd4 {[%clk
00:32:23]} {[%emt 00:03:59]} exd4 {[%clk 00:10:25]} {[%emt 00:00:06]} 27. Nf5
{[%clk 00:31:03]} {[%emt 00:01:49]} c3 {[%clk 00:09:18]} {[%emt 00:01:38]} 28.
Bf1 {[%clk 00:29:25]} {[%emt 00:02:07]} Bc5 {[%clk 00:02:53]} {[%emt 00:06:56]}
29. Bd3 {[%clk 00:27:11]} {[%emt 00:02:44]} Nd7 {[%clk 00:02:20]} {[%emt
00:01:03]} 30. Rdh1 {[%clk 00:25:38]} {[%emt 00:02:01]} Ne5 {[%clk 00:01:28]}
{[%emt 00:01:24]} 31. Ke2 {[%clk 00:25:08]} {[%emt 00:01:00]} f6 {[%clk
00:01:13]} {[%emt 00:00:45]} 32. hxg5 {[%clk 00:24:01]} {[%emt 00:01:36]} fxg5
{[%clk 00:01:29]} {[%emt 00:00:15]} 33. Rxh6+ {[%clk 00:23:23]} {[%emt
00:01:08]} Rxh6 {[%emt 00:00:25]} 34. Rxh6+ {[%clk 00:23:33]} Kf7 {[%clk
00:02:19]} {[%emt 00:00:04]} 35. Rh7+ {[%clk 00:20:22]} {[%emt 00:03:40]} Kf6
{[%clk 00:02:01]} {[%emt 00:00:44]} 36. Rh6+ {[%clk 00:18:31]} {[%emt
00:02:25]} Kf7 {[%clk 00:00:49]} {[%emt 00:01:41]} 37. Rh7+ {[%clk 00:17:13]}
{[%emt 00:01:50]} 1/2-1/2

[Event "Esbjerg Efterår 2024 - Esbjergmesterskabet"]
[Site "Esbjerg, Denmark"]
[Date "2024.10.19"]
[Round "5.6"]
[White "Hye, Allan"]
[Black "Vinther, Christoffer"]
[Result "1-0"]
[TimeControl "1.-3. 20 min + 5 sek, 4.-7. 90 min + 30 sek + 15 min efter 40 træk"]
[WhiteElo "1988"]
[BlackElo "1800"]

1. Nf3 {[%clk 01:30:54]} {[%emt 00:00:05]} e6 {[%clk 01:30:43]} {[%emt
00:00:17]} 2. b3 {[%clk 01:31:03]} {[%emt 00:00:21]} Nc6 {[%clk 01:31:01]}
{[%emt 00:00:13]} 3. Bb2 {[%clk 01:31:24]} {[%emt 00:00:08]} b6 {[%clk
01:31:14]} {[%emt 00:00:18]} 4. d3 {[%clk 01:30:56]} {[%emt 00:00:57]} Nf6
{[%clk 01:31:15]} {[%emt 00:00:28]} 5. Nbd2 {[%clk 01:30:58]} {[%emt 00:00:28]}
Bb7 {[%clk 01:30:42]} {[%emt 00:01:03]} 6. g3 {[%clk 01:30:20]} {[%emt
00:01:08]} Bc5 {[%clk 01:27:57]} {[%emt 00:03:15]} 7. Bg2 {[%clk 01:27:56]}
{[%emt 00:02:54]} O-O {[%clk 01:26:19]} {[%emt 00:02:07]} 8. O-O {[%clk
01:28:15]} {[%emt 00:00:12]} d5 {[%clk 01:22:27]} {[%emt 00:04:23]} 9. c4
{[%clk 01:26:09]} {[%emt 00:02:35]} Ne7 {[%clk 01:22:06]} {[%emt 00:00:51]} 10.
Bxf6 {[%clk 01:24:45]} {[%emt 00:01:54]} gxf6 {[%clk 01:22:28]} {[%emt
00:00:09]} 11. Qc2 {[%clk 01:22:54]} {[%emt 00:02:21]} c6 {[%clk 01:19:29]}
{[%emt 00:03:28]} 12. Qb2 {[%clk 01:19:41]} {[%emt 00:03:43]} e5 {[%clk
01:17:35]} {[%emt 00:02:24]} 13. b4 {[%clk 01:14:38]} {[%emt 00:05:34]} Bd6
{[%clk 01:17:49]} {[%emt 00:00:16]} 14. c5 {[%clk 01:12:53]} {[%emt 00:02:15]}
Bc7 {[%clk 01:18:07]} {[%emt 00:00:12]} 15. a4 {[%clk 01:09:57]} {[%emt
00:03:26]} Rb8 {[%clk 01:13:17]} {[%emt 00:05:20]} 16. Qc2 {[%clk 01:06:44]}
{[%emt 00:03:43]} bxc5 {[%clk 01:06:55]} {[%emt 00:06:52]} 17. bxc5 {[%clk
01:04:23]} {[%emt 00:02:51]} Bc8 {[%clk 00:58:27]} {[%emt 00:08:59]} 18. Rab1
{[%clk 00:55:56]} {[%emt 00:08:57]} Be6 {[%clk 00:52:03]} {[%emt 00:06:54]} 19.
Rxb8 {[%clk 00:49:51]} {[%emt 00:06:35]} Qxb8 {[%clk 00:50:45]} {[%emt
00:01:47]} 20. h3 {[%clk 00:43:56]} {[%emt 00:06:25]} a5 {[%clk 00:39:10]}
{[%emt 00:12:05]} 21. Kh2 {[%clk 00:35:43]} {[%emt 00:08:43]} Qa7 {[%clk
00:37:26]} {[%emt 00:02:15]} 22. e4 {[%clk 00:29:33]} {[%emt 00:06:40]} d4
{[%clk 00:37:29]} {[%emt 00:00:27]} 23. Nh4 {[%clk 00:25:42]} {[%emt 00:04:21]}
Rb8 {[%clk 00:30:52]} {[%emt 00:07:07]} 24. g4 {[%clk 00:23:49]} {[%emt
00:02:23]} Rb4 {[%clk 00:30:19]} {[%emt 00:01:04]} 25. Nf5 {[%clk 00:19:25]}
{[%emt 00:04:53]} Ng6 {[%clk 00:26:26]} {[%emt 00:04:23]} 26. Nf3 {[%clk
00:12:50]} {[%emt 00:07:05]} Bb3 {[%clk 00:25:32]} {[%emt 00:01:24]} 27. Qd2
{[%clk 00:12:44]} {[%emt 00:00:36]} Nf4 {[%clk 00:25:40]} {[%emt 00:00:22]} 28.
Ne7+ {[%clk 00:12:29]} {[%emt 00:00:45]} Kf8 {[%clk 00:23:32]} {[%emt
00:02:38]} 29. Nxc6 {[%clk 00:12:49]} {[%emt 00:00:10]} Qxc5 {[%clk 00:21:57]}
{[%emt 00:02:05]} 30. Nxb4 {[%clk 00:12:34]} {[%emt 00:00:45]} axb4 {[%clk
00:19:25]} {[%emt 00:03:03]} 31. Rc1 {[%clk 00:12:29]} {[%emt 00:00:34]} Qa5
{[%clk 00:18:09]} {[%emt 00:01:45]} 32. Rxc7 {[%clk 00:12:26]} {[%emt
00:00:33]} Qxc7 {[%clk 00:17:35]} {[%emt 00:01:05]} 33. Qxb4+ {[%clk 00:12:49]}
{[%emt 00:00:07]} 1-0

[Event "Esbjerg Efterår 2024 - Esbjergmesterskabet"]
[Site "Esbjerg, Denmark"]
[Date "2024.10.19"]
[Round "5.7"]
[White "Husum, Lars"]
[Black "Jensen, Henrik Tranberg"]
[Result "0-1"]
[TimeControl "1.-3. 20 min + 5 sek, 4.-7. 90 min + 30 sek + 15 min efter 40 træk"]
[WhiteElo "2001"]
[BlackElo "2014"]

1. d4 {[%clk 01:30:54]} {[%emt 00:00:05]} Nf6 {[%clk 01:30:56]} {[%emt
00:00:04]} 2. Bf4 {[%clk 01:31:14]} {[%emt 00:00:11]} g6 {[%clk 01:29:58]}
{[%emt 00:01:28]} 3. Nc3 {[%clk 01:31:33]} {[%emt 00:00:12]} Bg7 {[%clk
01:30:23]} {[%emt 00:00:05]} 4. e4 {[%clk 01:31:55]} {[%emt 00:00:08]} O-O
{[%clk 01:30:18]} {[%emt 00:00:34]} 5. e5 {[%clk 01:31:59]} {[%emt 00:00:26]}
Ne8 {[%clk 01:30:42]} {[%emt 00:00:06]} 6. Qd2 {[%clk 01:32:01]} {[%emt
00:00:28]} c5 {[%clk 01:29:54]} {[%emt 00:01:18]} 7. d5 {[%clk 01:31:06]}
{[%emt 00:01:26]} d6 {[%clk 01:29:59]} {[%emt 00:00:24]} 8. Nf3 {[%clk
01:24:49]} {[%emt 00:06:47]} Bg4 {[%clk 01:29:53]} {[%emt 00:00:36]} 9. Bh6
{[%clk 01:22:39]} {[%emt 00:02:40]} Bxf3 {[%clk 01:28:57]} {[%emt 00:01:26]} 10.
Bxg7 {[%clk 01:22:53]} {[%emt 00:00:17]} Nxg7 {[%clk 01:28:37]} {[%emt
00:00:49]} 11. gxf3 {[%clk 01:23:12]} {[%emt 00:00:11]} dxe5 {[%clk 01:28:46]}
{[%emt 00:00:21]} 12. Qe3 {[%clk 01:21:16]} {[%emt 00:02:26]} Nd7 {[%clk
01:29:01]} {[%emt 00:00:15]} 13. Bh3 {[%clk 01:16:24]} {[%emt 00:05:22]} f5
{[%clk 01:20:44]} {[%emt 00:08:47]} 14. Rd1 {[%clk 01:13:53]} {[%emt 00:03:01]}
Nh5 {[%clk 01:15:16]} {[%emt 00:05:58]} 15. Qh6 {[%clk 01:10:41]} {[%emt
00:03:43]} Rf6 {[%clk 01:12:28]} {[%emt 00:03:17]} 16. Rg1 {[%clk 01:10:39]}
{[%emt 00:00:33]} Nf4 {[%clk 01:12:40]} {[%emt 00:00:18]} 17. Bf1 {[%clk
01:09:06]} {[%emt 00:02:02]} Qb6 {[%clk 01:10:33]} {[%emt 00:02:37]} 18. Bb5
{[%clk 01:05:51]} {[%emt 00:03:45]} Nf8 {[%clk 01:09:44]} {[%emt 00:01:19]} 19.
Rb1 {[%clk 00:58:04]} {[%emt 00:08:17]} Rd8 {[%clk 01:09:09]} {[%emt 00:01:05]}
20. Bc4 {[%clk 00:58:15]} {[%emt 00:00:19]} Qb4 {[%clk 01:07:22]} {[%emt
00:02:09]} 21. Bb3 {[%clk 00:57:12]} {[%emt 00:01:41]} c4 {[%clk 01:06:24]}
{[%emt 00:01:28]} 22. a3 {[%clk 00:55:29]} {[%emt 00:02:13]} Qc5 {[%clk
00:59:42]} {[%emt 00:07:11]} 23. Ba2 {[%clk 00:55:43]} {[%emt 00:00:18]} Nxd5
{[%clk 00:58:31]} {[%emt 00:01:40]} 24. Ne2 {[%clk 00:53:37]} {[%emt 00:02:36]}
Ne6 {[%clk 00:56:52]} {[%emt 00:02:09]} 25. h4 {[%clk 00:53:39]} {[%emt
00:00:28]} Nef4 {[%clk 00:56:30]} {[%emt 00:00:51]} 26. h5 {[%clk 00:45:25]}
{[%emt 00:08:44]} Rdd6 {[%clk 00:55:51]} {[%emt 00:01:09]} 27. Ng3 {[%clk
00:41:15]} {[%emt 00:04:40]} Nh3 {[%clk 00:55:40]} {[%emt 00:00:40]} 28. Rg2
{[%clk 00:40:07]} {[%emt 00:01:40]} g5 {[%clk 00:55:57]} {[%emt 00:00:14]} 29.
Ne4 {[%clk 00:40:08]} {[%emt 00:00:28]} fxe4 {[%clk 00:54:54]} {[%emt
00:01:32]} 30. Rxg5+ {[%clk 00:40:19]} {[%emt 00:00:20]} Nxg5 {[%clk 00:55:13]}
{[%emt 00:00:11]} 31. Qxg5+ {[%clk 00:40:29]} {[%emt 00:00:21]} Kf8 {[%clk
00:54:42]} {[%emt 00:00:56]} 32. Qxe5 {[%clk 00:40:02]} {[%emt 00:01:01]} exf3
{[%clk 00:54:39]} {[%emt 00:00:33]} 33. Kf1 {[%clk 00:39:41]} {[%emt 00:00:52]}
Rde6 {[%clk 00:52:31]} {[%emt 00:02:38]} 34. Qb8+ {[%clk 00:39:41]} {[%emt
00:00:31]} Kg7 {[%clk 00:52:56]} {[%emt 00:00:02]} 35. Qg3+ {[%clk 00:39:38]}
{[%emt 00:00:35]} Kf7 {[%clk 00:53:00]} {[%emt 00:00:23]} 36. Rd1 {[%clk
00:36:50]} {[%emt 00:03:20]} Qd6 {[%clk 00:52:02]} {[%emt 00:01:26]} 37. Qxd6
{[%clk 00:36:31]} {[%emt 00:00:52]} Rxd6 {[%clk 00:52:15]} {[%emt 00:00:16]} 38.
Bxc4 {[%clk 00:36:44]} {[%emt 00:00:17]} e6 {[%clk 00:52:26]} {[%emt 00:00:19]}
0-1